[Event "*** Titled Tuesday 3|2 Blitz"]
[Site "Chess.com"]
[Date "2016.09.06"]
[Round "7"]
[White "Tesla37"]
[Black "Krutoy123"]
[Result "0-1"]
[WhiteElo "2590"]
[BlackElo "2469"]
[TimeControl "180+2"]
[EndTime "12:27:35 PDT"]
[Termination "Krutoy123 won by resignation"]

1. e4 {[%clk 0:03:01.9]} 1... c5 {[%clk 0:02:59.5]} 2. Nf3 {[%clk 0:03:02.2]}
2... Nc6 {[%clk 0:02:56.9]} 3. Nc3 {[%clk 0:03:01.3]} 3... g6 {[%clk 0:02:51.9]}
4. d4 {[%clk 0:03:00.9]} 4... cxd4 {[%clk 0:02:52.5]} 5. Nxd4 {[%clk 0:03:02.4]}
5... Bg7 {[%clk 0:02:52.9]} 6. Nde2 {[%clk 0:03:03.9]} 6... Nf6 {[%clk
0:02:51.2]} 7. g3 {[%clk 0:03:04.3]} 7... O-O {[%clk 0:02:51.4]} 8. Bg2 {[%clk
0:03:05.3]} 8... Rb8 {[%clk 0:02:50.7]} 9. a4 {[%clk 0:03:05.6]} 9... a6 {[%clk
0:02:50.5]} 10. O-O {[%clk 0:03:06.2]} 10... b5 {[%clk 0:02:51]} 11. axb5 {[%clk
0:03:07.1]} 11... axb5 {[%clk 0:02:52.9]} 12. Re1 {[%clk 0:03:06]} 12... d6
{[%clk 0:02:51.2]} 13. h3 {[%clk 0:03:05.9]} 13... Nd7 {[%clk 0:02:49.8]} 14.
Nd5 {[%clk 0:02:58.6]} 14... b4 {[%clk 0:02:37.4]} 15. Ra2 {[%clk 0:02:57.2]}
15... b3 {[%clk 0:02:30.3]} 16. cxb3 {[%clk 0:02:57.2]} 16... Nc5 {[%clk
0:02:30.2]} 17. Ra3 {[%clk 0:02:42.2]} 17... e6 {[%clk 0:02:25.7]} 18. Ne3
{[%clk 0:02:31.2]} 18... Nb4 {[%clk 0:02:25.7]} 19. Nf4 {[%clk 0:02:28]} 19...
Bb7 {[%clk 0:01:56]} 20. Nc4 {[%clk 0:02:28.1]} 20... e5 {[%clk 0:01:56.2]} 21.
Nd5 {[%clk 0:02:25.2]} 21... Nbd3 {[%clk 0:01:53.9]} 22. Rf1 {[%clk 0:01:37.8]}
22... Bxd5 {[%clk 0:01:51.5]} 23. exd5 {[%clk 0:01:37.2]} 23... Nxc1 {[%clk
0:01:52.8]} 24. Qxc1 {[%clk 0:01:38]} 24... Nxb3 {[%clk 0:01:54]} 25. Qd1 {[%clk
0:01:31.5]} 25... Nd4 {[%clk 0:01:52]} 26. Qd3 {[%clk 0:01:23.8]} 26... f5
{[%clk 0:01:42.2]} 27. Ra7 {[%clk 0:01:22.1]} 27... Qf6 {[%clk 0:01:21.5]} 28.
Ra6 {[%clk 0:00:58]} 28... Rfd8 {[%clk 0:01:18.6]} 29. Kh2 {[%clk 0:00:57.6]}
29... h5 {[%clk 0:01:16.4]} 30. Qd2 {[%clk 0:00:52.7]} 30... h4 {[%clk
0:01:14.2]} 31. Na5 {[%clk 0:00:51.9]} 31... e4 {[%clk 0:01:01.5]} 32. Nc6
{[%clk 0:00:50.6]} 32... hxg3+ {[%clk 0:00:51.4]} 33. fxg3 {[%clk 0:00:41.9]}
33... Nf3+ {[%clk 0:00:33.2]} 34. Rxf3 {[%clk 0:00:32.1]} 34... exf3 {[%clk
0:00:23.8]} 35. Nxb8 {[%clk 0:00:26.5]} 35... Rxb8 {[%clk 0:00:23.6]} 36. Qf4
{[%clk 0:00:26]} 36... fxg2 {[%clk 0:00:21.5]} 37. Rxd6 {[%clk 0:00:26.7]} 37...
Qxb2 {[%clk 0:00:19]} 38. Rxg6 {[%clk 0:00:24.8]} 38... g1=Q+ {[%clk 0:00:19.5]}
39. Kxg1 {[%clk 0:00:25.6]} 39... Qa1+ {[%clk 0:00:18.5]} 40. Kf2 {[%clk
0:00:16.3]} 40... Rb2+ {[%clk 0:00:18.7]} 0-1

[Event "*** Titled Tuesday 3|2 Blitz"]
[Site "Chess.com"]
[Date "2016.09.06"]
[Round "7"]
[White "AlexanderL"]
[Black "maciek_92"]
[Result "0-1"]
[WhiteElo "2521"]
[BlackElo "2538"]
[TimeControl "180+2"]
[EndTime "12:27:50 PDT"]
[Termination "maciek_92 won on time"]

1. d4 {[%clk 0:02:57.6]} 1... Nf6 {[%clk 0:03:01.1]} 2. c4 {[%clk 0:02:58.5]}
2... e6 {[%clk 0:03:02.6]} 3. Nc3 {[%clk 0:02:58.7]} 3... Bb4 {[%clk 0:03:03]}
4. Qc2 {[%clk 0:02:59.9]} 4... O-O {[%clk 0:03:02.3]} 5. Nf3 {[%clk 0:03:01.1]}
5... d5 {[%clk 0:03:00.3]} 6. a3 {[%clk 0:02:59.5]} 6... Be7 {[%clk 0:02:52.3]}
7. cxd5 {[%clk 0:02:55.9]} 7... exd5 {[%clk 0:02:52.9]} 8. Bg5 {[%clk
0:02:55.6]} 8... Bg4 {[%clk 0:02:50.1]} 9. e3 {[%clk 0:02:50.2]} 9... Nbd7
{[%clk 0:02:44.5]} 10. Bd3 {[%clk 0:02:51.3]} 10... Bh5 {[%clk 0:02:41.3]} 11.
Ne5 {[%clk 0:02:51.1]} 11... Bg6 {[%clk 0:02:26.7]} 12. Nxg6 {[%clk 0:02:41.9]}
12... hxg6 {[%clk 0:02:28.6]} 13. O-O {[%clk 0:02:35.4]} 13... c6 {[%clk
0:02:21.3]} 14. b4 {[%clk 0:02:34.6]} 14... Rc8 {[%clk 0:02:17.7]} 15. Qb3
{[%clk 0:02:31.8]} 15... a6 {[%clk 0:02:05.4]} 16. a4 {[%clk 0:02:31.3]} 16...
Ne4 {[%clk 0:01:58.6]} 17. Bxe7 {[%clk 0:02:22.2]} 17... Qxe7 {[%clk 0:02:00.5]}
18. Bxe4 {[%clk 0:02:19.5]} 18... dxe4 {[%clk 0:02:02.4]} 19. b5 {[%clk
0:02:12]} 19... axb5 {[%clk 0:02:00.2]} 20. axb5 {[%clk 0:02:13.2]} 20... c5
{[%clk 0:02:02.1]} 21. Rfd1 {[%clk 0:02:09.1]} 21... cxd4 {[%clk 0:01:55.8]} 22.
Rxd4 {[%clk 0:02:09.2]} 22... Nc5 {[%clk 0:01:57.1]} 23. Qb4 {[%clk 0:02:05.1]}
23... Rfe8 {[%clk 0:01:31.9]} 24. b6 {[%clk 0:01:39.3]} 24... f5 {[%clk
0:01:12.7]} 25. Nd5 {[%clk 0:01:15.2]} 25... Qe5 {[%clk 0:01:07.9]} 26. Nc7
{[%clk 0:00:42.1]} 26... Rf8 {[%clk 0:00:21.8]} 27. Rad1 {[%clk 0:00:35.6]}
27... Nd3 {[%clk 0:00:22.6]} 28. Qb3+ {[%clk 0:00:35.1]} 28... Rf7 {[%clk
0:00:20.8]} 29. Rd7 {[%clk 0:00:33.8]} 29... Rf8 {[%clk 0:00:21.8]} 30. Nb5
{[%clk 0:00:26]} 30... Nc5 {[%clk 0:00:22.2]} 31. Qc4 {[%clk 0:00:23.6]} 31...
Nxd7 {[%clk 0:00:22.9]} 32. Nd6 {[%clk 0:00:19.5]} 32... Nxb6 {[%clk 0:00:17.9]}
0-1

[Event "*** Titled Tuesday 3|2 Blitz"]
[Site "Chess.com"]
[Date "2016.09.06"]
[Round "7"]
[White "Misha_Bilous"]
[Black "saraswathii"]
[Result "1-0"]
[WhiteElo "2371"]
[BlackElo "2116"]
[TimeControl "180+2"]
[EndTime "12:27:52 PDT"]
[Termination "Misha_Bilous won by resignation"]

1. d4 {[%clk 0:03:01.6]} 1... Nc6 {[%clk 0:02:59.7]} 2. d5 {[%clk 0:02:55.9]}
2... Ne5 {[%clk 0:03:00.3]} 3. g3 {[%clk 0:02:57]} 3... Nf6 {[%clk 0:02:56.4]}
4. Bg2 {[%clk 0:02:57.4]} 4... Ng6 {[%clk 0:02:57.2]} 5. Nf3 {[%clk 0:02:53.7]}
5... e6 {[%clk 0:02:58.4]} 6. c4 {[%clk 0:02:50.5]} 6... Bc5 {[%clk 0:02:58.5]}
7. O-O {[%clk 0:02:46.5]} 7... exd5 {[%clk 0:02:58.8]} 8. cxd5 {[%clk
0:02:46.3]} 8... d6 {[%clk 0:03:00.1]} 9. Nc3 {[%clk 0:02:43.4]} 9... O-O {[%clk
0:02:59.7]} 10. Nd4 {[%clk 0:02:38.6]} 10... h6 {[%clk 0:02:54]} 11. a3 {[%clk
0:02:24.6]} 11... a6 {[%clk 0:02:54.5]} 12. b4 {[%clk 0:02:21.6]} 12... Bb6
{[%clk 0:02:54.5]} 13. Bb2 {[%clk 0:02:21]} 13... Qe7 {[%clk 0:02:55.3]} 14. Rc1
{[%clk 0:02:20.3]} 14... Re8 {[%clk 0:02:55.7]} 15. Qd3 {[%clk 0:02:08.1]} 15...
Ne5 {[%clk 0:02:55.8]} 16. Qd1 {[%clk 0:02:04.8]} 16... Nc4 {[%clk 0:02:56.1]}
17. Ba1 {[%clk 0:02:05.3]} 17... Nxa3 {[%clk 0:02:52.4]} 18. Na4 {[%clk
0:01:59.8]} 18... Nb5 {[%clk 0:02:35.8]} 19. Nxb6 {[%clk 0:01:55.3]} 19... cxb6
{[%clk 0:02:36.1]} 20. Nxb5 {[%clk 0:01:54.9]} 20... axb5 {[%clk 0:02:36.4]} 21.
Re1 {[%clk 0:01:38.1]} 21... Ra2 {[%clk 0:02:22.3]} 22. Rc2 {[%clk 0:01:11.9]}
22... Ra4 {[%clk 0:02:10.5]} 23. Qd4 {[%clk 0:01:07.9]} 23... Bf5 {[%clk
0:02:05.4]} 24. Rc3 {[%clk 0:00:58.5]} 24... Be4 {[%clk 0:01:57.6]} 25. Re3
{[%clk 0:00:51.9]} 25... Qe5 {[%clk 0:01:31.2]} 26. Qxe5 {[%clk 0:00:45.1]}
26... dxe5 {[%clk 0:01:33.1]} 27. Bxe4 {[%clk 0:00:45.6]} 27... Rxb4 {[%clk
0:01:32.9]} 28. Bg2 {[%clk 0:00:41.6]} 28... Nd7 {[%clk 0:01:31.8]} 29. Bh3
{[%clk 0:00:35.5]} 29... Nf6 {[%clk 0:01:32.3]} 30. Rd1 {[%clk 0:00:33.7]} 30...
Re4 {[%clk 0:01:25.3]} 31. Rxe4 {[%clk 0:00:29.3]} 31... Nxe4 {[%clk 0:01:27.2]}
32. d6 {[%clk 0:00:29.7]} 32... f6 {[%clk 0:01:27.3]} 33. Bg2 {[%clk 0:00:17.9]}
33... Nc5 {[%clk 0:01:27.2]} 34. Rb1 {[%clk 0:00:12.9]} 34... Rd8 {[%clk
0:01:27]} 35. Rd1 {[%clk 0:00:14.1]} 35... Kf7 {[%clk 0:01:25.5]} 36. Bd5+
{[%clk 0:00:08.9]} 36... Kf8 {[%clk 0:01:20.7]} 37. Ba2 {[%clk 0:00:08.2]} 37...
b4 {[%clk 0:01:21.2]} 38. Bc4 {[%clk 0:00:07.8]} 38... Ne4 {[%clk 0:01:16]} 39.
d7 {[%clk 0:00:07]} 39... Ke7 {[%clk 0:01:16.3]} 40. Rb1 {[%clk 0:00:04.9]}
40... Rxd7 {[%clk 0:01:14.7]} 41. Kg2 {[%clk 0:00:06.4]} 41... Nc3 {[%clk
0:01:02.9]} 42. Rxb4 {[%clk 0:00:05.4]} 42... Nd1 {[%clk 0:00:57.1]} 43. Rxb6
{[%clk 0:00:05.9]} 43... Rc7 {[%clk 0:00:56.3]} 44. Bd3 {[%clk 0:00:06]} 44...
Rc1 {[%clk 0:00:55.3]} 45. Rb1 {[%clk 0:00:07]} 45... Rxb1 {[%clk 0:00:55.4]}
46. Bxb1 {[%clk 0:00:08.4]} 46... b5 {[%clk 0:00:56.8]} 47. Bc2 {[%clk
0:00:09.8]} 1-0

[Event "*** Titled Tuesday 3|2 Blitz"]
[Site "Chess.com"]
[Date "2016.09.06"]
[Round "7"]
[White "Haridaskesavan"]
[Black "Andrejkin"]
[Result "1-0"]
[WhiteElo "2205"]
[BlackElo "2193"]
[TimeControl "180+2"]
[EndTime "12:28:13 PDT"]
[Termination "Haridaskesavan won by checkmate"]

1. e4 {[%clk 0:03:02]} 1... c5 {[%clk 0:03:00.3]} 2. c3 {[%clk 0:03:02.7]} 2...
Nf6 {[%clk 0:03:00.4]} 3. e5 {[%clk 0:03:03.4]} 3... Nd5 {[%clk 0:03:01.4]} 4.
g3 {[%clk 0:03:05]} 4... Nc6 {[%clk 0:02:58.9]} 5. Bg2 {[%clk 0:03:05.4]} 5...
e6 {[%clk 0:02:59.6]} 6. Nf3 {[%clk 0:03:04.3]} 6... d6 {[%clk 0:02:59.7]} 7.
exd6 {[%clk 0:03:05.3]} 7... Bxd6 {[%clk 0:02:58.4]} 8. d4 {[%clk 0:03:05.5]}
8... cxd4 {[%clk 0:02:59.3]} 9. Nxd4 {[%clk 0:03:06.6]} 9... O-O {[%clk
0:02:55.6]} 10. O-O {[%clk 0:03:07.6]} 10... Bc5 {[%clk 0:02:51]} 11. Nxc6
{[%clk 0:03:03.7]} 11... bxc6 {[%clk 0:02:52.9]} 12. c4 {[%clk 0:03:02.9]} 12...
Ne7 {[%clk 0:02:53.4]} 13. Qxd8 {[%clk 0:03:00.5]} 13... Rxd8 {[%clk 0:02:55.3]}
14. Nc3 {[%clk 0:02:52.5]} 14... Bb7 {[%clk 0:02:55.2]} 15. Bf4 {[%clk
0:02:47.6]} 15... Rac8 {[%clk 0:02:52.2]} 16. Rfd1 {[%clk 0:02:45.1]} 16... Nf5
{[%clk 0:02:46.2]} 17. Ne4 {[%clk 0:02:40.3]} 17... Bd4 {[%clk 0:02:37.9]} 18.
Rd2 {[%clk 0:02:27.4]} 18... e5 {[%clk 0:02:37.1]} 19. Bh3 {[%clk 0:02:18.3]}
19... g6 {[%clk 0:02:12.3]} 20. Bg5 {[%clk 0:02:13.8]} 20... Rf8 {[%clk
0:01:55.7]} 21. Rad1 {[%clk 0:02:09.9]} 21... c5 {[%clk 0:01:56.1]} 22. Bxf5
{[%clk 0:01:49.6]} 22... gxf5 {[%clk 0:01:56]} 23. Nd6 {[%clk 0:01:50.8]} 23...
Rc7 {[%clk 0:01:41.7]} 24. Nxf5 {[%clk 0:01:50.6]} 24... Bf3 {[%clk 0:01:36.7]}
25. Bf6 {[%clk 0:01:50.6]} 25... h5 {[%clk 0:01:31.2]} 26. Re1 {[%clk
0:01:47.5]} 26... Re8 {[%clk 0:01:11.7]} 27. Nxd4 {[%clk 0:01:47]} 27... cxd4
{[%clk 0:01:12.1]} 28. b3 {[%clk 0:01:26.3]} 28... e4 {[%clk 0:01:04]} 29. Bxd4
{[%clk 0:01:23.3]} 29... f5 {[%clk 0:01:01.9]} 30. Be3 {[%clk 0:01:22.9]} 30...
Kf7 {[%clk 0:01:01]} 31. h3 {[%clk 0:01:23.1]} 31... Ke6 {[%clk 0:00:58.5]} 32.
Kh2 {[%clk 0:01:23.1]} 32... a5 {[%clk 0:00:59]} 33. Bf4 {[%clk 0:01:21.8]}
33... Rc6 {[%clk 0:00:54.7]} 34. Rc1 {[%clk 0:01:19]} 34... Rec8 {[%clk
0:00:49.7]} 35. Be3 {[%clk 0:01:11.2]} 35... a4 {[%clk 0:00:45.1]} 36. h4 {[%clk
0:01:10.1]} 36... axb3 {[%clk 0:00:44.1]} 37. axb3 {[%clk 0:01:10.9]} 37... Ra8
{[%clk 0:00:45.3]} 38. c5 {[%clk 0:01:07.1]} 38... Rb8 {[%clk 0:00:42.8]} 39.
Rb2 {[%clk 0:01:06.1]} 39... Rb5 {[%clk 0:00:39.4]} 40. b4 {[%clk 0:01:05.6]}
40... Kd5 {[%clk 0:00:39.2]} 41. Rd2+ {[%clk 0:01:01.2]} 41... Ke6 {[%clk
0:00:40]} 42. Rd4 {[%clk 0:01:02.1]} 42... Bg4 {[%clk 0:00:39.7]} 43. Ra1 {[%clk
0:00:59]} 43... Ke5 {[%clk 0:00:35.8]} 44. Ra8 {[%clk 0:00:57.3]} 44... Re6
{[%clk 0:00:27.4]} 45. Rad8 {[%clk 0:00:49.7]} 45... Re7 {[%clk 0:00:20.6]} 46.
Bg5 {[%clk 0:00:49.3]} 46... Reb7 {[%clk 0:00:20.5]} 47. R8d6 {[%clk 0:00:43]}
47... e3 {[%clk 0:00:18.6]} 48. Bxe3 {[%clk 0:00:34.3]} 48... Rxb4 {[%clk
0:00:17.1]} 49. Bf4# {[%clk 0:00:32.4]} 1-0

[Event "*** Titled Tuesday 3|2 Blitz"]
[Site "Chess.com"]
[Date "2016.09.06"]
[Round "7"]
[White "nihalsarin"]
[Black "Blitzstream"]
[Result "1-0"]
[WhiteElo "2424"]
[BlackElo "2538"]
[TimeControl "180+2"]
[EndTime "12:28:28 PDT"]
[Termination "nihalsarin won by resignation"]

1. d4 {[%clk 0:03:00.4]} 1... d5 {[%clk 0:03:00.5]} 2. c4 {[%clk 0:03:01.6]}
2... c6 {[%clk 0:03:01.1]} 3. Nf3 {[%clk 0:03:02.5]} 3... Nf6 {[%clk 0:03:02.4]}
4. g3 {[%clk 0:03:02.6]} 4... Bf5 {[%clk 0:03:00]} 5. Bg2 {[%clk 0:03:02.4]}
5... e6 {[%clk 0:03:01.5]} 6. Nc3 {[%clk 0:03:02.9]} 6... Be7 {[%clk 0:03:03.2]}
7. Nh4 {[%clk 0:03:03.4]} 7... Bg6 {[%clk 0:03:03.8]} 8. Qb3 {[%clk 0:03:04.3]}
8... Qb6 {[%clk 0:03:02.2]} 9. Nxg6 {[%clk 0:02:59.5]} 9... hxg6 {[%clk
0:03:01.3]} 10. c5 {[%clk 0:02:57.4]} 10... Qxb3 {[%clk 0:03:01.9]} 11. axb3
{[%clk 0:02:58.2]} 11... Nbd7 {[%clk 0:03:02.4]} 12. b4 {[%clk 0:02:57.1]} 12...
e5 {[%clk 0:02:56.9]} 13. e3 {[%clk 0:02:53.7]} 13... O-O {[%clk 0:02:43.8]} 14.
f4 {[%clk 0:02:46.2]} 14... exd4 {[%clk 0:02:41.2]} 15. exd4 {[%clk 0:02:45.9]}
15... Rfe8 {[%clk 0:02:34.9]} 16. Kf2 {[%clk 0:02:46.4]} 16... Nf8 {[%clk
0:02:22.7]} 17. h3 {[%clk 0:02:38.7]} 17... Ne6 {[%clk 0:02:22.7]} 18. Be3
{[%clk 0:02:39.2]} 18... a6 {[%clk 0:02:17.2]} 19. Rhe1 {[%clk 0:02:19.1]} 19...
Nh7 {[%clk 0:02:02.8]} 20. Kg1 {[%clk 0:02:00.4]} 20... f5 {[%clk 0:01:57.4]}
21. Nxd5 {[%clk 0:01:28]} 21... cxd5 {[%clk 0:01:52.3]} 22. Bxd5 {[%clk
0:01:28.5]} 22... Bf6 {[%clk 0:01:44.5]} 23. Bf2 {[%clk 0:01:27.4]} 23... Nf8
{[%clk 0:01:42.9]} 24. Bxb7 {[%clk 0:01:13.1]} 24... Rab8 {[%clk 0:01:43.9]} 25.
c6 {[%clk 0:00:46.5]} 25... Rxb7 {[%clk 0:00:43.4]} 26. cxb7 {[%clk 0:00:46.8]}
26... Rb8 {[%clk 0:00:45.3]} 27. d5 {[%clk 0:00:33.5]} 27... Nd4 {[%clk
0:00:38.3]} 28. Red1 {[%clk 0:00:33.8]} 28... Nb5 {[%clk 0:00:24.7]} 29. Rxa6
{[%clk 0:00:34.4]} 29... Rxb7 {[%clk 0:00:25.6]} 30. d6 {[%clk 0:00:32.4]} 30...
Nd7 {[%clk 0:00:22]} 31. Rc6 {[%clk 0:00:29.7]} 31... Bxb2 {[%clk 0:00:21.5]}
32. Rd2 {[%clk 0:00:28.8]} 32... Bc3 {[%clk 0:00:20.1]} 33. Rc2 {[%clk
0:00:28.2]} 33... Bxb4 {[%clk 0:00:20.7]} 34. Rc7 {[%clk 0:00:26.5]} 34... Nxd6
{[%clk 0:00:18]} 35. Rxb7 {[%clk 0:00:23.4]} 35... Nxb7 {[%clk 0:00:19.9]} 36.
Rb2 {[%clk 0:00:24]} 36... Nd6 {[%clk 0:00:14.5]} 37. Rxb4 {[%clk 0:00:24.6]}
37... Ne4 {[%clk 0:00:15.9]} 38. Kg2 {[%clk 0:00:24.9]} 38... Ndf6 {[%clk
0:00:16.9]} 39. Rb5 {[%clk 0:00:25.8]} 39... Kh7 {[%clk 0:00:17.2]} 40. Bd4
{[%clk 0:00:26.8]} 40... Kh6 {[%clk 0:00:18.3]} 41. Bxf6 {[%clk 0:00:27.7]}
41... Nxf6 {[%clk 0:00:19.8]} 42. Kf3 {[%clk 0:00:28.3]} 42... Kh7 {[%clk
0:00:20.9]} 43. g4 {[%clk 0:00:29.2]} 43... fxg4+ {[%clk 0:00:22]} 44. hxg4
{[%clk 0:00:30.6]} 44... Ng8 {[%clk 0:00:23.9]} 45. Rb6 {[%clk 0:00:29.6]} 45...
Nf6 {[%clk 0:00:24.8]} 46. Ra6 {[%clk 0:00:30.7]} 46... Ng8 {[%clk 0:00:25.8]}
47. Re6 {[%clk 0:00:31.8]} 47... Nf6 {[%clk 0:00:26.9]} 48. Re1 {[%clk
0:00:32.6]} 48... Kg8 {[%clk 0:00:27.2]} 49. g5 {[%clk 0:00:31.6]} 49... Nd7
{[%clk 0:00:25.6]} 50. Re7 {[%clk 0:00:32.2]} 50... Nf8 {[%clk 0:00:22]} 51. Ke4
{[%clk 0:00:31.1]} 51... Kh7 {[%clk 0:00:21.4]} 52. Ke5 {[%clk 0:00:27.9]} 52...
Nd7+ {[%clk 0:00:22.3]} 53. Rxd7 {[%clk 0:00:28.3]} 53... Kh8 {[%clk 0:00:22.9]}
54. Ke6 {[%clk 0:00:28.7]} 54... Kh7 {[%clk 0:00:24.8]} 55. Kf7 {[%clk
0:00:29.5]} 55... Kh8 {[%clk 0:00:26.7]} 56. Kxg6 {[%clk 0:00:31]} 1-0

[Event "*** Titled Tuesday 3|2 Blitz"]
[Site "Chess.com"]
[Date "2016.09.06"]
[Round "7"]
[White "ChessWarrior7197"]
[Black "Maitreia"]
[Result "0-1"]
[WhiteElo "2470"]
[BlackElo "2411"]
[TimeControl "180+2"]
[EndTime "12:29:30 PDT"]
[Termination "Maitreia won by resignation"]

1. e4 {[%clk 0:03:01.9]} 1... c5 {[%clk 0:03:00.5]} 2. Nf3 {[%clk 0:03:02.6]}
2... d6 {[%clk 0:03:01]} 3. d4 {[%clk 0:03:02.4]} 3... Nf6 {[%clk 0:03:02.5]} 4.
Nc3 {[%clk 0:03:02.2]} 4... cxd4 {[%clk 0:03:03.9]} 5. Nxd4 {[%clk 0:03:03.1]}
5... g6 {[%clk 0:03:05.4]} 6. f3 {[%clk 0:03:02.8]} 6... Bg7 {[%clk 0:03:07]} 7.
Be3 {[%clk 0:03:04]} 7... O-O {[%clk 0:03:08.6]} 8. Qd2 {[%clk 0:03:05.5]} 8...
Nc6 {[%clk 0:03:10.2]} 9. O-O-O {[%clk 0:03:06.7]} 9... Bd7 {[%clk 0:03:11.8]}
10. h4 {[%clk 0:03:05.6]} 10... h5 {[%clk 0:03:12.7]} 11. Nxc6 {[%clk
0:03:04.7]} 11... bxc6 {[%clk 0:03:11]} 12. Bc4 {[%clk 0:03:05.5]} 12... Rb8
{[%clk 0:03:05.7]} 13. Bb3 {[%clk 0:03:05.7]} 13... Qa5 {[%clk 0:02:57.5]} 14.
Bh6 {[%clk 0:03:06.1]} 14... Be6 {[%clk 0:02:40]} 15. Bxg7 {[%clk 0:03:05.3]}
15... Kxg7 {[%clk 0:02:41.9]} 16. Ne2 {[%clk 0:02:56.8]} 16... Qxd2+ {[%clk
0:02:36.6]} 17. Kxd2 {[%clk 0:02:57.8]} 17... c5 {[%clk 0:02:32.7]} 18. Nf4
{[%clk 0:02:51.3]} 18... Bxb3 {[%clk 0:02:26.7]} 19. axb3 {[%clk 0:02:51.5]}
19... c4 {[%clk 0:02:25.1]} 20. bxc4 {[%clk 0:02:52.1]} 20... Rxb2 {[%clk
0:02:25.6]} 21. Ra1 {[%clk 0:02:52.8]} 21... Rc8 {[%clk 0:02:22.8]} 22. Kc3
{[%clk 0:02:51.5]} 22... Rb7 {[%clk 0:02:22.7]} 23. Ra4 {[%clk 0:02:45.5]} 23...
Nd7 {[%clk 0:02:16.7]} 24. Rha1 {[%clk 0:02:45.7]} 24... Ne5 {[%clk 0:02:09.5]}
25. Nd3 {[%clk 0:02:43.9]} 25... Nc6 {[%clk 0:01:55.4]} 26. Kd2 {[%clk
0:02:40.9]} 26... Rbc7 {[%clk 0:01:55.6]} 27. f4 {[%clk 0:02:30.5]} 27... Nd4
{[%clk 0:01:44.5]} 28. c5 {[%clk 0:02:20.2]} 28... dxc5 {[%clk 0:01:33.5]} 29.
Rxa7 {[%clk 0:02:18.4]} 29... c4 {[%clk 0:01:34.9]} 30. Ne5 {[%clk 0:02:17.5]}
30... f6 {[%clk 0:01:32.1]} 31. Nf3 {[%clk 0:01:55.5]} 31... c3+ {[%clk
0:01:23]} 32. Kd1 {[%clk 0:01:49.9]} 32... Nxf3 {[%clk 0:01:20.1]} 33. gxf3
{[%clk 0:01:50.8]} 33... Rd8+ {[%clk 0:01:19]} 34. Kc1 {[%clk 0:01:51.4]} 34...
Rxa7 {[%clk 0:01:06.7]} 35. Rxa7 {[%clk 0:01:51.4]} 35... Kf7 {[%clk 0:01:08.6]}
36. Ra3 {[%clk 0:01:30.8]} 36... Rd2 {[%clk 0:01:09]} 37. Rxc3 {[%clk
0:01:30.9]} 37... Rh2 {[%clk 0:01:10.6]} 38. Rd3 {[%clk 0:01:23.6]} 38... Rxh4
{[%clk 0:01:06.9]} 39. c4 {[%clk 0:01:24.7]} 39... Rh2 {[%clk 0:00:58]} 40. c5
{[%clk 0:01:23.5]} 40... Ra2 {[%clk 0:00:58.8]} 41. Rc3 {[%clk 0:01:16.1]} 41...
Ke8 {[%clk 0:00:57.2]} 42. Kb1 {[%clk 0:00:58.3]} 42... Rd2 {[%clk 0:00:51.6]}
43. Kc1 {[%clk 0:00:57.3]} 43... Ra2 {[%clk 0:00:51]} 44. Kb1 {[%clk 0:00:56.5]}
44... Ra5 {[%clk 0:00:48.6]} 45. Kb2 {[%clk 0:00:40.3]} 45... Kd7 {[%clk
0:00:49.5]} 46. Kb3 {[%clk 0:00:41.1]} 46... Kc6 {[%clk 0:00:50.5]} 47. Rc1
{[%clk 0:00:25.7]} 47... Rb5+ {[%clk 0:00:47.7]} 48. Ka2 {[%clk 0:00:19.4]}
48... Rxc5 {[%clk 0:00:49.6]} 49. Rg1 {[%clk 0:00:20.3]} 49... g5 {[%clk
0:00:50.7]} 50. fxg5 {[%clk 0:00:20.1]} 50... fxg5 {[%clk 0:00:49.9]} 51. Kb3
{[%clk 0:00:19.8]} 51... Kd6 {[%clk 0:00:35.4]} 52. Kb4 {[%clk 0:00:20.7]} 52...
Re5 {[%clk 0:00:35.6]} 53. Kc4 {[%clk 0:00:21.2]} 53... Ke6 {[%clk 0:00:36]} 54.
Kd4 {[%clk 0:00:22.4]} 54... Kf6 {[%clk 0:00:37.6]} 55. Rh1 {[%clk 0:00:23.9]}
55... h4 {[%clk 0:00:38.5]} 56. f4 {[%clk 0:00:25.2]} 56... Ra5 {[%clk
0:00:36.6]} 57. fxg5+ {[%clk 0:00:21.7]} 57... Kxg5 {[%clk 0:00:38.5]} 58. Rg1+
{[%clk 0:00:23.1]} 58... Kf4 {[%clk 0:00:39.4]} 59. Rf1+ {[%clk 0:00:24.5]}
59... Kg3 {[%clk 0:00:40.2]} 60. e5 {[%clk 0:00:21.9]} 60... h3 {[%clk 0:00:38]}
61. Rf7 {[%clk 0:00:22.3]} 61... Ra4+ {[%clk 0:00:37.2]} 62. Kd5 {[%clk
0:00:22.2]} 62... h2 {[%clk 0:00:39.1]} 63. Rf1 {[%clk 0:00:07]} 63... Kg2
{[%clk 0:00:37.2]} 64. Ra1 {[%clk 0:00:03]} 64... Rxa1 {[%clk 0:00:37.7]} 0-1